fUST/lending_fUST_20240901
["ID","MTS","AMOUNT","RATE_DAILY","PERIOD"]
[336819672,1725190266639,-500.0,0.00029495,15]
[336819673,1725190266649,-618.8,0.00029495,15]
[336819674,1725190266658,-500.0,0.00029495,15]
[336819675,1725190266668,-581.82,0.00029495,15]
[336819676,1725190266677,-1590.55,0.00029495,15]
[336819677,1725190266686,-500.0,0.00029495,15]
[336819678,1725190266695,-500.0,0.00029495,2]
[336819679,1725190266704,-814.38,0.00029495,15]
[336819680,1725190266713,-578.66,0.00029495,15]
[336819681,1725190266723,-500.0,0.00029495,15]
[336819682,1725190266732,-805.46,0.00029495,15]
[336819683,1725190266741,-500.0,0.00029495,15]
[336819684,1725190266751,-500.0,0.00029495,15]
[336819685,1725190266762,-1051.47,0.00029495,15]
[336819686,1725190266771,-500.0,0.00029495,15]
[336819687,1725190266780,-500.0,0.00029495,15]
[336819688,1725190266790,-1759.62,0.00029495,15]
[336819689,1725190266799,-914.92,0.00029495,15]
[336819690,1725190266809,-681.67,0.00029495,15]
[336819691,1725190266818,-1238.85,0.00029495,15]
[336819692,1725190266827,-500.0,0.00029495,15]
[336819693,1725190266838,-500.0,0.00029495,15]
[336819694,1725190266847,-179.3679257,0.00029495,15]
[336819695,1725190266857,-500.0,0.00029495,15]
[336819696,1725190266867,-500.0,0.00029495,15]
[336819697,1725190266876,-5021.96,0.00029585,15]
[336819698,1725190266885,-741.43,0.00029585,15]
[336819699,1725190266895,-1278.04,0.00029585,15]
[336819700,1725190266904,-960.88,0.00029585,15]
[336819701,1725190266914,-1153.21,0.00029585,15]
[336819702,1725190266924,-815.48,0.00029585,15]
[336819703,1725190266933,-21602.6,0.00029585,15]
[336819704,1725190266943,-1097.19,0.00029585,15]
[336819705,1725190266952,-500.0,0.00029585,15]
[336819706,1725190266961,-1235.74,0.00029585,15]
[336819707,1725190266971,-7508.14,0.00029585,15]
[336819708,1725190266980,-4510.39,0.00029585,15]
[336819709,1725190266990,-5144.95,0.00029585,15]
[336819710,1725190266999,-553.99,0.00029585,15]
[336819711,1725190267010,-1222.36,0.00029585,15]
[336819712,1725190267021,-500.0,0.00029586,15]
[336819713,1725190267030,-1750.1,0.00029586,15]
[336819714,1725190267039,-500.0,0.00029586,15]
[336819715,1725190267048,-2695.32,0.00029586,15]
[336819716,1725190267058,-4145.03,0.00029586,15]
[336819717,1725190267067,-4014.95,0.00029586,15]
[336819718,1725190267077,-500.0,0.00029586,15]
[336819719,1725190267086,-7452.19,0.00029586,15]
[336819720,1725190267096,-32741.1,0.00029586,8]
[336819721,1725190267106,-1410.77,0.00029586,15]
[336819722,1725190267115,-533.66,0.00029586,15]
[336819723,1725190267124,-3313.62,0.00029586,15]
[336819724,1725190267133,-1583.29,0.00029586,15]
[336819725,1725190267142,-500.0,0.00029586,15]
[336819726,1725190267152,-500.0,0.00029586,15]
[336819727,1725190267161,-2520.25,0.00029586,15]
[336819728,1725190267170,-2691.19,0.00029586,15]
[336819729,1725190267180,-500.0,0.00029586,15]
[336819730,1725190267190,-891.84,0.00029586,15]
[336819731,1725190267201,-1013.73,0.00029586,15]
[336819732,1725190267211,-936.11,0.00029586,15]
[336819733,1725190267219,-3466.34,0.00029586,15]
[336819734,1725190267229,-574.88,0.00029586,15]
[336819735,1725190267238,-4031.65,0.00029586,15]
[336819736,1725190267248,-1852.87,0.00029586,15]
[336819737,1725190267257,-500.0,0.00029587,15]
[336819738,1725190267267,-2143.4,0.00029587,15]
[336819739,1725190267276,-500.0,0.00029587,15]
[336819740,1725190267286,-500.0,0.00029587,15]
[336819741,1725190267295,-553.19181531,0.00029587,15]
[336819742,1725190267305,-913.5,0.00029587,15]
[336819743,1725190267314,-957.06,0.00029587,15]
[336819744,1725190267323,-607.13,0.00029587,15]
[336819745,1725190267333,-500.0,0.00029587,15]
[336819746,1725190267342,-1295.04,0.00029587,15]
[336819747,1725190267352,-500.0,0.00029587,15]
[336819748,1725190267361,-500.0,0.00029587,15]
[336819749,1725190267370,-500.0,0.00029587,15]
[336819750,1725190267379,-500.0,0.00029587,15]
[336819751,1725190267398,-540.26,0.00029587,15]
[336819752,1725190267408,-1687.85,0.00029587,15]
[336819753,1725190267418,-1256.23,0.00029587,15]
[336819754,1725190267428,-500.0,0.00029587,15]
[336819755,1725190267437,-670.09,0.00029587,15]
[336819756,1725190267447,-910.82,0.00029587,15]
[336819757,1725190267456,-710.04,0.00029587,15]
[336819758,1725190267466,-500.0,0.00029587,15]
[336819759,1725190267476,-1102.69,0.00029587,15]
[336819760,1725190267486,-1190.65,0.00029587,15]
[336819761,1725190267496,-556.69,0.00029587,15]
[336819762,1725190267506,-2371.33,0.00029587,15]
[336819763,1725190267516,-500.0,0.00029587,15]
[336819764,1725190267526,-560.63,0.00029587,15]
[336819765,1725190267535,-1985.26,0.00029587,15]
[336819766,1725190267545,-6498.82,0.00029587,15]
[336819767,1725190267559,-500.0,0.00029587,15]
[336819768,1725190267569,-542.64,0.00029587,15]
[336819769,1725190267578,-500.0,0.00029587,15]
[336819770,1725190267587,-500.0,0.00029587,15]
[336819771,1725190267597,-500.0,0.00029587,15]
[336819772,1725190267606,-834.9,0.00029587,15]
[336819773,1725190267615,-500.0,0.00029587,15]
[336819774,1725190267625,-500.0,0.00029587,15]
[336819775,1725190267636,-1619.73,0.00029587,15]
[336819776,1725190267646,-1079.6,0.00029587,15]
[336819777,1725190267654,-500.0,0.00029587,15]
[336819778,1725190267664,-623.31,0.00029587,15]
[336819779,1725190267674,-743.79,0.00029587,15]
[336819780,1725190267683,-500.0,0.00029587,15]
[336819781,1725190267693,-708.75,0.00029587,15]
[336819782,1725190267703,-500.0,0.00029587,15]
[336819783,1725190267712,-1914.34,0.00029587,15]
[336819784,1725190267722,-3913.52,0.00029587,15]
[336819785,1725190267732,-5515.16,0.00029587,15]
[336819786,1725190267742,-1204.33,0.00029587,15]
[336819787,1725190267753,-1053.79,0.00029587,15]
[336819788,1725190267763,-500.0,0.00029587,15]
[336819789,1725190267773,-13912.41,0.00029587,15]
[336819790,1725190267783,-500.0,0.00029587,15]
[336819791,1725190267792,-579.21,0.00029587,15]
[336819792,1725190267801,-1301.12,0.00029587,15]
[336819793,1725190267813,-1121.35,0.00029587,15]
[336819794,1725190267823,-500.0,0.00029587,15]
[336819795,1725190267832,-500.0,0.00029588,15]
[336819796,1725190267841,-526.42068415,0.00029588,15]
[336819797,1725190267850,-248.38060256,0.00029588,7]
[336819798,1725190267860,-500.0,0.00029588,15]
[336819799,1725190267869,-567.53,0.00029588,15]
[336819800,1725190267878,-1049.89,0.00029588,15]
[336819801,1725190267888,-500.0,0.00029588,15]
[336819802,1725190267897,-500.0,0.00029588,15]
[336819803,1725190267906,-500.0,0.00029588,15]
[336819804,1725190267916,-500.0,0.00029588,15]
[336819805,1725190267925,-761.9,0.00029588,15]
[336819806,1725190267934,-271.67780194,0.00029588,15]
[336819807,1725190267944,-795.65,0.00029588,15]
[336819808,1725190267953,-764.37,0.00029588,15]
[336819809,1725190267963,-500.0,0.00029588,15]
[336819810,1725190267973,-424.06780542,0.00029588,15]
[336819811,1725190267983,-629.77,0.00029588,15]
[336819812,1725190267992,-500.0,0.00029588,15]
[336819813,1725190268002,-1215.96,0.00029588,15]
[336819814,1725190268011,-500.0,0.00029588,15]
[336819815,1725190268021,-500.0,0.00029588,15]
[336819816,1725190268031,-500.0,0.00029588,15]
[336819817,1725190268041,-1170.7,0.00029588,15]
[336819818,1725190268051,-500.0,0.00029588,15]
[336819819,1725190268060,-500.0,0.00029588,15]
[336819820,1725190268198,-500.0,0.00029588,15]
[336819821,1725190268216,-642.09,0.00029588,15]
[336819822,1725190268225,-1085.86,0.00029588,15]
[336819823,1725190268235,-739.39,0.00029588,15]
[336819824,1725190268244,-968.22,0.00029588,15]
[336819825,1725190268253,-500.0,0.00029588,15]
[336819826,1725190268264,-500.0,0.00029588,15]
[336819827,1725190268273,-1115.8,0.00029588,15]
[336819828,1725190268283,-500.0,0.00029588,15]
[336819829,1725190268293,-731.19,0.00029588,15]
[336819830,1725190268302,-535.55,0.00029588,15]
[336819831,1725190268311,-668.48,0.00029588,15]
[336819832,1725190268320,-500.0,0.00029588,15]
[336819833,1725190268329,-482.71310644,0.00029588,15]
[336819834,1725190268339,-802.33,0.00029588,15]
[336819835,1725190268348,-500.0,0.00029588,15]
[336819836,1725190268357,-500.0,0.00029588,15]
[336819837,1725190268366,-500.0,0.00029588,15]
[336819838,1725190268375,-500.0,0.00029589,15]
[336819839,1725190268384,-500.0,0.00029589,15]
[336819840,1725190268393,-500.0,0.00029589,15]
[336819841,1725190268403,-483.96575754,0.00029589,15]
[336819842,1725190268412,-500.0,0.00029657,15]
[336819843,1725190268421,-151.0,0.00029769,7]
[336819844,1725190268430,-775.42,0.00029769,15]
[336819845,1725190268439,-959.6,0.00029769,15]
[336819846,1725190268449,-842.14,0.00029769,15]
[336819847,1725190268458,-621.06,0.00029769,15]
[336819848,1725190268467,-500.0,0.00029769,15]
[336819849,1725190268477,-500.0,0.00029769,15]
[336819850,1725190268486,-464.68238539,0.00029769,15]
[336819851,1725190268495,-500.0,0.00029769,15]
[336819852,1725190268504,-764.71,0.00029769,15]
[336819853,1725190268514,-500.0,0.00029769,15]
[336819854,1725190268523,-902.52,0.00029769,15]
[336819855,1725190268532,-504.7,0.00029769,15]
[336819856,1725190268541,-608.1,0.00029769,15]
[336819857,1725190268554,-500.0,0.00029769,15]
[336819858,1725190268563,-500.0,0.00029769,15]
[336819859,1725190268572,-500.0,0.00029769,15]
[336819860,1725190268582,-500.0,0.00029769,15]
[336819861,1725190268591,-500.0,0.00029769,15]
[336819862,1725190268600,-639.82,0.00029769,15]
[336819863,1725190268609,-500.0,0.00029769,15]
[336819864,1725190268618,-500.0,0.00029769,15]
[336819865,1725190268627,-1407.61,0.00029769,15]
[336819866,1725190268637,-500.0,0.00029769,15]
[336819867,1725190268647,-503.7723864,0.00029769,15]
[336819868,1725190268656,-3782.96,0.00029769,15]
[336819869,1725190268665,-500.0,0.00029769,15]
[336819870,1725190268674,-1698.8,0.00029769,15]
[336819871,1725190268683,-500.0,0.00029769,15]
[336819872,1725190268692,-618.8,0.00029769,15]
[336819873,1725190268702,-500.0,0.00029769,15]
[336819874,1725190268711,-581.82,0.00029769,15]
[336819875,1725190268720,-1590.55,0.00029769,15]
[336819876,1725190268729,-500.0,0.00029769,15]
[336819877,1725190268738,-500.0,0.00029769,2]
[336819878,1725190268747,-814.38,0.00029769,15]
[336819879,1725190268756,-578.66,0.00029769,15]
[336819880,1725190268766,-500.0,0.00029769,15]
[336819881,1725190268775,-805.46,0.00029769,15]
[336819882,1725190268784,-258.2864906,0.00029769,15]
[336819883,1725190268792,-500.0,0.00029769,15]
[336819884,1725190268802,-1051.47,0.00029769,15]
[336819885,1725190268811,-500.0,0.00029769,15]
[336819886,1725190268820,-500.0,0.00029769,15]
[336819887,1725190268830,-1759.62,0.00029769,15]
[336819888,1725190268840,-914.92,0.00029769,15]
[336819889,1725190268849,-681.67,0.00029769,15]
[336819890,1725190268858,-1238.85,0.00029769,15]
[336819891,1725190268868,-500.0,0.00029769,15]
[336819892,1725190268878,-500.0,0.00029769,15]
[336819893,1725190268887,-500.0,0.00029769,15]
[336819894,1725190268898,-500.0,0.00029769,15]
[336819895,1725190268907,-1000.0,0.00029787,2]
[336819896,1725190268916,-5021.96,0.00029859,15]
[336819897,1725190268925,-741.43,0.00029859,15]
[336819898,1725190268935,-1278.04,0.00029859,15]
[336819899,1725190268944,-960.88,0.00029859,15]
[336819900,1725190268954,-1153.21,0.00029859,15]
[336819901,1725190268963,-815.48,0.00029859,15]
[336819902,1725190268973,-21602.6,0.00029859,15]
[336819903,1725190268984,-1097.19,0.00029859,15]
[336819904,1725190268993,-500.0,0.00029859,15]
[336819905,1725190269003,-1235.74,0.00029859,15]
[336819906,1725190269012,-7508.14,0.00029859,15]
[336819907,1725190269021,-4510.39,0.00029859,15]
[336819908,1725190269030,-553.99,0.00029859,15]
[336819909,1725190269040,-5144.95,0.00029859,15]
[336819910,1725190269049,-500.0,0.0002986,15]
[336819911,1725190269059,-1750.1,0.0002986,15]
[336819912,1725190269068,-500.0,0.0002986,15]
[336819913,1725190269078,-2695.32,0.0002986,15]
[336819914,1725190269087,-4145.03,0.0002986,15]
[336819915,1725190269098,-4014.95,0.0002986,15]
[336819916,1725190269107,-500.0,0.0002986,15]
[336819917,1725190269125,-7452.19,0.0002986,15]
[336819918,1725190269142,-32741.1,0.0002986,8]
[336819919,1725190269155,-1410.77,0.0002986,15]
[336819920,1725190269171,-3313.62,0.0002986,15]
[336819921,1725190269188,-533.66,0.0002986,15]
[336819922,1725190269203,-1583.29,0.0002986,15]
[336819923,1725190269220,-296.42311592,0.0002986,15]
[336819924,1725190269234,-500.0,0.0002986,15]
[336819925,1725190269250,-2520.25,0.0002986,15]
[336819926,1725190269266,-2691.19,0.0002986,15]
[336819927,1725190269279,-500.0,0.0002986,15]
[336819928,1725190269293,-891.84,0.0002986,15]
[336819929,1725190269313,-1013.73,0.0002986,15]
[336819930,1725190269329,-936.11,0.0002986,15]
[336819931,1725190269345,-3466.34,0.0002986,15]
[336819932,1725190269361,-574.88,0.0002986,15]
[336819933,1725190269372,-4031.65,0.0002986,15]
[336819934,1725190269384,-1852.87,0.0002986,15]
[336819935,1725190269400,-570.86907341,0.00029861,15]
[336819936,1725190269414,-2143.4,0.00029861,15]
[336819937,1725190269431,-500.0,0.00029861,15]
[336819938,1725190269446,-500.0,0.00029861,15]
[336819939,1725190269462,-913.5,0.00029861,15]
[336819940,1725190269474,-957.06,0.00029861,15]
[336819941,1725190269488,-607.13,0.00029861,15]
[336819942,1725190269505,-500.0,0.00029861,15]
[336819943,1725190269520,-1295.04,0.00029861,15]
[336819944,1725190269535,-500.0,0.00029861,15]
[336819945,1725190269553,-500.0,0.00029861,15]
[336819946,1725190269567,-500.0,0.00029861,15]
[336819947,1725190269581,-500.0,0.00029861,15]
[336819948,1725190269597,-540.26,0.00029861,15]
[336819949,1725190269611,-1687.85,0.00029861,15]
[336819950,1725190269624,-1256.23,0.00029861,15]
[336819951,1725190269638,-500.0,0.00029861,15]
[336819952,1725190269652,-670.09,0.00029861,15]
[336819953,1725190269665,-910.82,0.00029861,15]
[336819954,1725190269678,-710.04,0.00029861,15]
[336819955,1725190269692,-500.0,0.00029861,15]
[336819956,1725190269706,-1102.69,0.00029861,15]
[336819957,1725190269720,-1190.65,0.00029861,15]
[336819958,1725190269732,-556.69,0.00029861,15]
[336819959,1725190269745,-2371.33,0.00029861,15]
[336819960,1725190269758,-500.0,0.00029861,15]
[336819961,1725190269771,-560.63,0.00029861,15]
[336819962,1725190269783,-1985.26,0.00029861,15]
[336819963,1725190269796,-6498.82,0.00029861,15]
[336819964,1725190269809,-500.0,0.00029861,15]
[336819965,1725190269822,-542.64,0.00029861,15]
[336819966,1725190269836,-500.0,0.00029861,15]
[336819967,1725190269848,-500.0,0.00029861,15]
[336819968,1725190269861,-500.0,0.00029861,15]
[336819969,1725190269873,-834.9,0.00029861,15]
[336819970,1725190269886,-600.9648165,0.00029861,15]
[336819971,1725190269899,-500.0,0.00029861,15]
[336819972,1725190269912,-1619.73,0.00029861,15]
[336819973,1725190269925,-1079.6,0.00029861,15]
[336819974,1725190269938,-500.0,0.00029861,15]
[336819975,1725190269951,-623.31,0.00029861,15]
[336819976,1725190269963,-743.79,0.00029861,15]
[336819977,1725190269976,-500.0,0.00029861,15]
[336819978,1725190269990,-708.75,0.00029861,15]
[336819979,1725190270004,-636.38749605,0.00029861,15]
[336819980,1725190270018,-1914.34,0.00029861,15]
[336819981,1725190270031,-3913.52,0.00029861,15]
[336819982,1725190270046,-5515.16,0.00029861,15]
[336819983,1725190270058,-1204.33,0.00029861,15]
[336819984,1725190270071,-1053.79,0.00029861,15]
[336819985,1725190270084,-500.0,0.00029861,15]
[336819986,1725190270097,-13912.41,0.00029861,15]
[336819987,1725190270110,-500.0,0.00029861,15]
[336819988,1725190270123,-579.21,0.00029861,15]
[336819989,1725190270136,-1301.12,0.00029861,15]
[336819990,1725190270148,-500.0,0.00029861,15]
[336819991,1725190270161,-1121.35,0.00029861,15]
[336819992,1725190270173,-500.0,0.00029862,15]
[336819993,1725190270186,-500.0,0.00029862,15]
[336819994,1725190270198,-567.53,0.00029862,15]
[336819995,1725190270211,-1049.89,0.00029862,15]
[336819996,1725190270223,-500.0,0.00029862,15]
[336819997,1725190270235,-500.0,0.00029862,15]
[336819998,1725190270248,-500.0,0.00029862,15]
[336819999,1725190270261,-500.0,0.00029862,15]
[336820000,1725190270273,-761.9,0.00029862,15]
[336820001,1725190270285,-795.65,0.00029862,15]
[336820002,1725190270298,-764.37,0.00029862,15]
[336820003,1725190270311,-500.0,0.00029862,15]
[336820004,1725190270324,-629.77,0.00029862,15]
[336820005,1725190270335,-518.77241438,0.00029862,15]
[336820006,1725190270344,-1215.96,0.00029862,15]
[336820007,1725190270354,-500.0,0.00029862,15]
[336820008,1725190270363,-500.0,0.00029862,15]
[336820009,1725190270372,-500.0,0.00029862,15]
[336820010,1725190270382,-1170.7,0.00029862,15]
[336820011,1725190270567,-434.09901306,0.00029862,15]
[336820012,1725190270580,-500.0,0.00029862,15]
[336820013,1725190270590,-500.0,0.00029862,15]
[336820014,1725190270599,-642.09,0.00029862,15]
[336820015,1725190270608,-1085.86,0.00029862,15]
[336820016,1725190270618,-739.39,0.00029862,15]
[336820017,1725190270628,-968.22,0.00029862,15]
[336820018,1725190270638,-500.0,0.00029862,15]
[336820019,1725190270647,-500.0,0.00029862,15]
[336820020,1725190270656,-1115.8,0.00029862,15]
[336820021,1725190270666,-500.0,0.00029862,15]
[336820022,1725190270675,-731.19,0.00029862,15]
[336820023,1725190270685,-535.55,0.00029862,15]
[336820024,1725190270694,-668.48,0.00029862,15]
[336820025,1725190270703,-500.0,0.00029862,15]
[336820026,1725190270712,-802.33,0.00029862,15]
[336820027,1725190270722,-500.0,0.00029862,15]
[336820028,1725190270731,-500.0,0.00029862,15]
[336820029,1725190270740,-500.0,0.00029862,15]
[336820030,1725190270750,-500.0,0.00029863,15]
[336820031,1725190270759,-522.44429317,0.00029863,15]
[336820032,1725190270769,-500.0,0.00029863,15]
[336820033,1725190270778,-151.0,0.00029863,7]
[336820034,1725190270787,-863.56801204,0.00029869,2]
[336820035,1725190270796,-1000.0,0.00029894,2]
[336820036,1725190270805,-500.0,0.00029931,15]
[336820037,1725190270815,-1000.0,0.00029962,2]
[336820038,1725190270824,-472.99812073,0.00029999,15]
[336820039,1725190270833,-500.0,0.00029999,15]
[336820040,1725190270842,-500.0,0.00029999,7]
[336820041,1725190270851,-786.16,0.00029999,15]
[336820042,1725190270861,-500.0,0.00029999,15]
[336820043,1725190270870,-500.0,0.00029999,15]
[336820044,1725190270879,-500.0,0.00029999,15]
[336820045,1725190270889,-500.0,0.00029999,15]
[336820046,1725190270899,-500.0,0.00029999,15]
[336820047,1725190270908,-540.19,0.00029999,15]
[336820048,1725190270918,-500.0,0.00029999,15]
[336820049,1725190270927,-508.40228541,0.00029999,15]
[336820050,1725190270936,-500.0,0.00029999,15]
[336820051,1725190270945,-500.0,0.00029999,15]
[336820052,1725190270954,-500.0,0.00029999,15]
[336820053,1725190270963,-500.0,0.00029999,15]
[336820054,1725190270972,-420.58768688,0.00029999,15]
[336820055,1725190270981,-500.0,0.00029999,15]
[336820056,1725190270991,-500.0,0.00029999,15]
[336820057,1725190271001,-518.91,0.00029999,15]
[336820058,1725190271010,-500.0,0.00029999,15]
[336820059,1725190271019,-500.0,0.00029999,15]
[336820060,1725190271028,-500.0,0.00029999,15]
[336820061,1725190271037,-661.85,0.00029999,15]
[336820062,1725190271046,-500.0,0.00029999,15]
[336820063,1725190271056,-500.0,0.00029999,15]
[336820064,1725190271066,-913.52,0.00029999,15]
[336820065,1725190271075,-835.91,0.00029999,14]
[336820066,1725190271084,-559.30986844,0.00029999,15]
[336820067,1725190271093,-500.0,0.00029999,15]
[336820068,1725190271103,-724.67,0.00029999,7]
[336820069,1725190271116,-500.0,0.00029999,15]
[336820070,1725190271125,-500.0,0.00029999,15]
[336820071,1725190271134,-648.99,0.00029999,15]
[336820072,1725190271144,-500.0,0.00029999,15]
[336820073,1725190271153,-500.0,0.00029999,15]
[336820074,1725190271163,-500.0,0.00029999,15]
[336820075,1725190271171,-500.0,0.00029999,15]
[336820076,1725190271180,-500.0,0.00029999,15]
[336820077,1725190271189,-500.0,0.00029999,15]
[336820078,1725190271199,-502.05874136,0.00029999,15]
[336820079,1725190271208,-500.0,0.00029999,15]
[336820080,1725190271217,-500.0,0.00029999,15]
[336820081,1725190271227,-942.02,0.00029999,15]
[336820082,1725190271236,-310.67705888,0.00029999,15]
[336820083,1725190271245,-500.0,0.00029999,15]
[336820084,1725190271255,-500.0,0.00029999,15]
[336820085,1725190271264,-500.0,0.00029999,15]
[336820086,1725190271273,-500.0,0.00029999,15]
[336820087,1725190271283,-500.0,0.00029999,15]
[336820088,1725190271292,-500.0,0.00029999,15]
[336820089,1725190271301,-500.0,0.00029999,15]
[336820090,1725190271310,-484.00240528,0.00029999,15]
[336820091,1725190271320,-527.47918058,0.00029999,15]
[336820092,1725190271330,-500.0,0.00029999,15]
[336820093,1725190271340,-206.59434215,0.00029999,15]
[336820094,1725190271349,-500.0,0.00029999,15]
[336820095,1725190271359,-504.9,0.00029999,15]
[336820096,1725190271369,-500.0,0.00029999,15]
[336820097,1725190271379,-1393.67,0.00029999,15]
[336820098,1725190271389,-500.0,0.00029999,15]
[336820099,1725190271399,-458.69737463,0.00029999,15]
[336820100,1725190271410,-500.0,0.00029999,15]
[336820101,1725190271419,-500.0,0.00029999,15]
[336820102,1725190271429,-500.0,0.00029999,15]
[336820103,1725190271439,-500.0,0.00029999,15]
[336820104,1725190271449,-384.48459736,0.00029999,15]
[336820105,1725190271459,-500.0,0.00029999,15]
[336820106,1725190271468,-500.0,0.00029999,15]
[336820107,1725190271478,-500.0,0.00029999,15]
[336820108,1725190271487,-500.0,0.00029999,15]
[336820109,1725190271497,-500.0,0.00029999,15]
[336820110,1725190271506,-500.0,0.00029999,15]
[336820111,1725190271517,-500.0,0.00029999,15]
[336820112,1725190271536,-500.0,0.00029999,15]
[336820113,1725190271547,-500.0,0.00029999,15]
[336820114,1725190271560,-500.0,0.00029999,15]
[336820115,1725190271570,-500.96254311,0.00029999,15]
[336820116,1725190271580,-500.0,0.00029999,15]
[336820117,1725190271590,-500.0,0.00029999,15]
[336820118,1725190271600,-534.49675471,0.00029999,15]
[336820119,1725190271609,-500.0,0.00029999,15]
[336820120,1725190271619,-500.0,0.00029999,15]
[336820121,1725190271631,-584.5252583,0.00029999,15]
[336820122,1725190271642,-696.53,0.00029999,15]
[336820123,1725190271653,-500.0,0.00029999,15]
[336820124,1725190271664,-500.0,0.00029999,15]
[336820125,1725190271673,-613.05,0.00029999,15]
[336820126,1725190271687,-205.2154164,0.00029999,15]
[336820127,1725190271697,-747.54,0.00029999,15]
[336820128,1725190271708,-500.0,0.00029999,15]
[336820129,1725190271719,-500.0,0.00029999,15]
[336820130,1725190271729,-285.79563702,0.00029999,15]
[336820131,1725190271740,-500.0,0.00029999,15]
[336820132,1725190271751,-500.0,0.00029999,15]
[336820133,1725190271760,-500.0,0.00029999,15]
[336820134,1725190271778,-500.0,0.00029999,15]
[336820135,1725190271788,-500.0,0.00029999,15]
[336820136,1725190271798,-500.0,0.00029999,15]
[336820137,1725190271807,-500.0,0.00029999,15]
[336820138,1725190271816,-500.0,0.00029999,15]
[336820139,1725190271826,-500.0,0.00029999,15]
[336820140,1725190271835,-805.77,0.00029999,15]
[336820141,1725190271845,-500.0,0.00029999,15]
[336820142,1725190271854,-500.0,0.00029999,15]
[336820143,1725190271865,-500.0,0.00029999,15]
[336820144,1725190271874,-500.0,0.00029999,15]
[336820145,1725190271884,-500.0,0.00029999,15]
[336820146,1725190271893,-500.0,0.00029999,15]
[336820147,1725190271903,-500.0,0.00029999,15]
[336820148,1725190271913,-500.0,0.00029999,15]
[336820149,1725190271923,-898.34782203,0.0003,2]
[336820150,1725190271934,-503.59009378,0.0003,2]
[336820151,1725190271944,-151.0,0.00030043,7]
[336820152,1725190271954,-775.42,0.00030043,15]
[336820153,1725190271964,-959.6,0.00030043,15]
[336820154,1725190271974,-842.14,0.00030043,15]
[336820155,1725190271983,-621.06,0.00030043,15]
[336820156,1725190271992,-500.0,0.00030043,15]
[336820157,1725190272001,-500.0,0.00030043,15]
[336820158,1725190272015,-500.0,0.00030043,15]
[336820159,1725190272024,-764.71,0.00030043,15]
[336820160,1725190272035,-500.0,0.00030043,15]
[336820161,1725190272046,-902.52,0.00030043,15]
[336820162,1725190272057,-504.7,0.00030043,15]
[336820163,1725190272066,-608.1,0.00030043,15]
[336820164,1725190272076,-500.0,0.00030043,15]
[336820165,1725190272085,-500.0,0.00030043,15]
[336820166,1725190272094,-500.0,0.00030043,15]
[336820167,1725190272104,-500.0,0.00030043,15]
[336820168,1725190272113,-555.35547919,0.00030043,15]
[336820169,1725190272123,-639.82,0.00030043,15]
[336820170,1725190272132,-500.0,0.00030043,15]
[336820171,1725190272142,-500.0,0.00030043,15]